fUST/lending_fUST_20240719
["ID","MTS","AMOUNT","RATE_DAILY","PERIOD"]
[332594618,1721325046851,-337.62032309,0.00021643,2]
[332594630,1721325755615,3000.0,0.0001569,2]
[332594631,1721325789487,1438.80679991,0.0001569,2]
[332594632,1721325797601,294.75046907,0.0001569,2]
[332594633,1721325802079,287.84707162,0.0001569,2]
[332594634,1721325817076,287.84707162,0.0001569,2]
[332594636,1721325938076,286.56975562,0.0001569,2]
[332594638,1721326020768,155.44339341,9.999e-05,2]
[332594639,1721326071638,154.80649189,0.0001212,2]
[332594641,1721326077553,259.23330103,9.999e-05,2]
[332594642,1721326086237,154.93166857,9.999e-05,2]
[332594643,1721326088470,189.80119893,0.0001212,2]
[332594644,1721326091461,156.4037428,9.999e-05,2]
[332594654,1721326183582,242.90786688,9.999e-05,2]
[332594703,1721326231814,-300.0,0.00017402,2]
[332594705,1721326231828,-245.87563572,0.00017403,2]
[332594822,1721326237840,-283.5819115,0.00017403,2]
[332594823,1721326237853,-1602.99916526,0.00017403,2]
[332594824,1721326237863,-7009.80295961,0.00017403,2]
[332594825,1721326237873,-764.38633793,0.00017403,2]
[332594826,1721326237882,-803.36733613,0.0001788,2]
[332594827,1721326237892,-292.07358331,0.000189,2]
[332594828,1721326237901,-420.0,0.00019142,2]
[332594829,1721326237913,-166.666666,0.00019684,2]
[332594830,1721326237922,-164.623106,0.00019927,2]
[332594831,1721326237932,-201.176517,0.00020044,2]
[332594832,1721326237942,-191.103144,0.00020175,2]
[332594833,1721326237951,-166.666666,0.0002022,2]
[332594834,1721326237960,-329.32533792,0.00020493,2]
[332594835,1721326237970,-329.32533792,0.00020628,2]
[332594836,1721326237979,-1408.0,0.00020692,2]
[332594837,1721326237989,-166.666666,0.00020757,2]
[332594838,1721326237999,-600.0,0.00020777,2]
[332594839,1721326238009,-4156.669346,0.00020901,2]
[332594840,1721326238019,-329.32533792,0.00020966,2]
[332594841,1721326238028,-747.86784003,0.00020994,2]
[332594842,1721326238038,-1717.65190537,0.00020996,2]
[332594843,1721326238047,-248.15366783,0.00021,2]
[332594844,1721326238057,-299.66938998,0.00021,2]
[332594845,1721326238067,-424.51340734,0.00021,2]
[332594846,1721326238077,-30000.0,0.00021012,2]
[332594847,1721326238086,-587.0,0.00021056,2]
[332594848,1721326238097,-662.184007,0.00021096,2]
[332594849,1721326238106,-150.0,0.00021123,2]
[332594850,1721326238116,-503.0,0.00021123,2]
[332594851,1721326238126,-1004.35944972,0.00021169,2]
[332594852,1721326238138,-2389.31,0.00021219,6]
[332594853,1721326238147,-191.103144,0.00021227,2]
[332594854,1721326238159,-1004.35944968,0.00021229,2]
[332594855,1721326238170,-329.32533792,0.00021242,2]
[332594856,1721326238179,-153.57,0.00021249,3]
[332594857,1721326238190,-460.71,0.00021249,3]
[332594858,1721326238200,-196.7156269,0.00021258,2]
[332594859,1721326238210,-500.0,0.00021258,2]
[332594860,1721326238220,-500.0,0.00021258,2]
[332594861,1721326238232,-500.0,0.00021258,2]
[332594862,1721326238241,-500.0,0.00021258,2]
[332594863,1721326238251,-571.31519739,0.00021258,2]
[332594864,1721326238260,-500.0,0.00021258,2]
[332594865,1721326238270,-632.27357679,0.00021258,2]
[332594866,1721326238280,-572.50975844,0.00021258,2]
[332594867,1721326238290,-88060.708664,0.00021259,3]
[332594868,1721326238300,-113729.51498311,0.00021269,2]
[332594869,1721326238309,-1004.35944968,0.00021288,2]
[332594870,1721326238319,-627.4,0.00021291,2]
[332594871,1721326238329,-166.666666,0.00021294,2]
[332594872,1721326238338,-1004.35944968,0.00021348,2]
[332594873,1721326238348,-4156.669346,0.00021355,2]
[332594874,1721326238358,-166.666666,0.0002137,2]
[332594875,1721326238367,-4470.28382278,0.00021406,2]
[332594876,1721326238377,-1004.35944968,0.00021407,2]
[332594877,1721326238386,-300.11413652,0.0002142,2]
[332594878,1721326238395,-597.71400819,0.00021421,3]
[332594879,1721326238405,-567.65464644,0.00021422,2]
[332594880,1721326238415,-300.0,0.00021491,2]
[332594881,1721326238424,-375.39217735,0.00021491,2]
[332594882,1721326238436,-329.32533794,0.00021492,2]
[332594883,1721326238445,-1638.1526514,0.00021499,2]
[332594884,1721326238455,-500.0,0.000215,7]
[332594885,1721326238464,-500.0,0.000215,7]
[332594886,1721326238474,-500.0,0.000215,7]
[332594887,1721326238483,-500.0,0.000215,7]
[332594888,1721326238493,-528.51,0.000215,7]
[332594889,1721326238503,-248.8227936,0.00021507,2]
[332594890,1721326238512,-153.0,0.00021507,2]
[332594891,1721326238522,-153.0,0.00021507,2]
[332594892,1721326238531,-153.0,0.00021507,2]
[332594893,1721326238543,-153.0,0.00021507,2]
[332594894,1721326238557,-293.94282819,0.00021509,2]
[332594895,1721326238567,-44030.354332,0.0002151,3]
[332594896,1721326238579,-2842.54359995,0.00021512,2]
[332594897,1721326238588,-44030.354332,0.00021513,3]
[332594898,1721326238600,-5511.47943235,0.00021516,2]
[332594899,1721326238610,-2842.54359995,0.00021517,2]
[332594900,1721326238620,-1717.65190536,0.00021526,2]
[332594901,1721326238631,-166.85527227,0.00021532,2]
[332594902,1721326238641,-202.20035161,0.00021532,2]
[332594903,1721326238652,-181.57019631,0.00021532,2]
[332594904,1721326238662,-500.0,0.00021532,2]
[332594905,1721326238673,-601.87942832,0.00021532,2]
[332594906,1721326238684,-314.6465243,0.00021532,2]
[332594907,1721326238696,-210.0,0.00021532,2]
[332594908,1721326238707,-500.0,0.00021532,2]
[332594909,1721326238717,-500.0,0.00021532,2]
[332594910,1721326238727,-460.23040151,0.00021532,2]
[332594911,1721326238738,-500.0,0.00021532,2]
[332594912,1721326238749,-500.0,0.00021532,2]
[332594913,1721326238759,-500.0,0.00021532,2]
[332594914,1721326238769,-378.282063,0.00021533,2]
[332594915,1721326238780,-378.282063,0.00021533,2]
[332594916,1721326238791,-151.0,0.00021533,2]
[332594917,1721326238802,-1732.322297,0.00021533,2]
[332594918,1721326238812,-1732.322297,0.00021533,2]
[332594919,1721326238822,-151.0,0.00021533,2]
[332594920,1721326238831,-151.0,0.00021533,2]
[332594921,1721326238841,-151.0,0.00021533,2]
[332594922,1721326238851,-88060.708664,0.00021533,3]
[332594923,1721326238863,-2000.0,0.00021533,2]
[332594924,1721326238875,-4156.6693462,0.00021536,2]
[332594925,1721326238885,-886.94388172,0.00021542,2]
[332594926,1721326238896,-542.19950564,0.00021542,2]
[332594927,1721326238908,-6189.07067094,0.00021543,5]
[332594928,1721326238921,-15629.04650554,0.00021543,5]
[332594929,1721326239159,-1070.48995254,0.00021543,5]
[332594930,1721326239172,-378.282063,0.00021543,2]
[332594931,1721326239184,-378.282063,0.00021543,2]
[332594932,1721326239196,-151.0,0.00021543,2]
[332594933,1721326239207,-1732.322297,0.00021543,2]
[332594934,1721326239217,-1732.322297,0.00021543,2]
[332594935,1721326239228,-151.0,0.00021543,2]
[332594936,1721326239240,-151.0,0.00021543,2]
[332594937,1721326239251,-151.0,0.00021543,2]
[332594938,1721326239262,-88888.0,0.00021543,3]
[332594939,1721326239272,-542.19950564,0.00021558,2]
[332594940,1721326239282,-545.75030855,0.00021559,2]
[332594941,1721326239293,-287.30766407,0.0002156,2]
[332594942,1721326239303,-300.0,0.00021561,2]
[332594943,1721326239314,-154.79103211,0.00021561,2]
[332594944,1721326239324,-526.61897938,0.00021561,2]
[332594945,1721326239333,-526.19426647,0.00021562,2]
[332594946,1721326239343,-1635.71383512,0.0002159,5]
[332594947,1721326239352,-38681.54178983,0.0002159,3]
[332595192,1721326243111,-30.39032244,0.00021421,2]
[332595478,1721326246095,-126.09079475,0.00021421,2]
[332595480,1721326246106,-2842.54359995,0.00021515,2]
[332595482,1721326246118,-341.48992898,0.00021558,2]
[332595484,1721326246128,-248.68489287,0.00021561,2]
[332595486,1721326246140,-5348.81254217,0.0002159,3]
[332595489,1721326246153,-2074.65,0.00021591,2]
[332595491,1721326246166,-532.59095872,0.00021591,2]
[332595493,1721326246176,-11.13728256,0.00021599,2]
[332595534,1721326246567,-143.66224338,0.00021599,2]
[332595536,1721326246578,-848.0314238,0.00021599,2]
[332595538,1721326246588,-2431.61739616,0.00021599,2]
[332596288,1721327292690,268.67454471,9.999e-05,2]
[332596289,1721327292724,106.71763264,9.999e-05,2]
[332596296,1721327335698,460.97842303,0.0001212,2]
[332596297,1721327335737,539.02157697,0.0001212,2]
[332596298,1721327336023,201.18502105,9.999e-05,2]
[332596299,1721327340000,21.0884292,0.0001212,2]
[332596300,1721327340033,354.30374815,0.0001212,2]
[332596308,1721327386982,373.66810561,0.00014691,2]
[332596612,1721327438261,-341.48992898,0.00018899,2]
[332596615,1721327438271,-194.7157222,0.000189,2]
[332596618,1721327438281,-447.58228251,0.00019,2]
[332596622,1721327438292,-168.894924,0.00019087,2]
[332596626,1721327438302,-1106.55797426,0.00019547,2]
[332596629,1721327438311,-168.894924,0.00020388,2]
[332596632,1721327438321,-7164.96780269,0.0002099,2]
[332596635,1721327438330,-300.0,0.00020994,2]
[332596638,1721327438340,-1703.98892902,0.00020995,2]
[332596641,1721327438349,-226.18550039,0.00020997,2]
[332596643,1721327438359,-663.18017951,0.00020999,2]
[332596645,1721327438368,-248.15366783,0.00021,2]
[332596647,1721327438378,-1349.25678425,0.00021011,2]
[332596649,1721327438388,-26511.61989743,0.00021012,2]
[332596839,1721327440249,-3488.38010257,0.00021012,2]
[332596841,1721327440260,-154.91828839,0.00021048,2]
[332596843,1721327440270,-629.074806,0.00021096,2]
[332596845,1721327440280,-460.15963904,0.00021112,2]
[332596848,1721327440297,-3696.50970716,0.00021112,2]
[332596850,1721327440306,-732.85287319,0.00021209,2]
[332596852,1721327440316,-621.22215747,0.00021248,2]
[332596854,1721327440327,-5511.47943235,0.00021281,2]
[332596857,1721327440339,-156.35946513,0.00021281,2]
[332596859,1721327440350,-150.0,0.00021282,2]
[332596861,1721327440360,-504.0,0.00021282,2]
[332596863,1721327440370,-1408.0,0.00021282,2]
[332596865,1721327440380,-287.30766407,0.00021298,2]
[332596867,1721327440389,-587.7,0.00021299,2]
[332596869,1721327440398,-166.666666,0.0002137,2]
[332596871,1721327440410,-248.68489287,0.0002142,2]
[332596873,1721327440419,-153.0,0.00021507,2]
[332596875,1721327440429,-1703.98892902,0.00021525,2]
[332596877,1721327440438,-9649.62267473,0.00021533,3]
[332596961,1721327446081,-26093.15610812,0.00021533,3]
[332596962,1721327446093,-2000.0,0.00021533,2]
[332596963,1721327446104,-307.14,0.00021579,3]
[332596964,1721327446116,-648.32997803,0.00021579,2]
[332596965,1721327446126,-886.94388172,0.00021579,2]
[332596966,1721327446138,-300.89031169,0.0002158,2]
[332596967,1721327446149,-233.11565308,0.00021588,2]
[332596968,1721327446160,-500.0,0.00021588,2]
[332596969,1721327446170,-291.19366694,0.00021588,2]
[332596970,1721327446182,-500.0,0.00021588,2]
[332596971,1721327446193,-528.01172486,0.00021588,2]
[332596972,1721327446203,-649.74594398,0.00021588,2]
[332596973,1721327446213,-39648.5839909,0.00021589,3]
[332596974,1721327446225,-192.6049421,0.00021589,2]
[332596975,1721327446234,-151.0,0.0002159,7]
[332596977,1721327446244,-293.74500543,0.00021591,2]
[332596979,1721327446255,-491.96980821,0.00021592,2]
[332596980,1721327446265,-299.66938998,0.00021593,2]
[332596981,1721327446275,-299.66938998,0.00021593,2]
[332596982,1721327446285,-7056.31930193,0.00021593,2]
[332596984,1721327446295,-1424.78007197,0.00021593,2]
[332596986,1721327446306,-542.19950564,0.00021594,2]
[332596988,1721327446318,-1794.83001866,0.00021594,2]
[332596990,1721327446328,-542.19950564,0.00021594,2]
[332596991,1721327446338,-386.71652435,0.00021598,2]
[332596992,1721327446347,-526.61897938,0.00021598,2]
[332596993,1721327446357,-526.61897938,0.00021598,2]
[332596994,1721327446367,-1137.80479475,0.00021599,2]
[332596995,1721327446379,-7515.4872723,0.00021599,2]
[332596996,1721327446391,-5272.55865913,0.00021599,2]
[332596997,1721327446403,-8023.19074122,0.00021599,2]
[332596999,1721327446414,-6879.79283946,0.00021599,2]
[332597000,1721327446424,-374.0,0.000216,2]
[332597001,1721327446434,-150.112233,0.000216,5]
[332597002,1721327446443,-3000.0,0.000216,2]
[332597003,1721327446453,-39648.5839909,0.000216,3]
[332597004,1721327446463,-3000.0,0.0002161,2]
[332597005,1721327446473,-1000.0,0.00021618,2]
[332597006,1721327446484,-3000.0,0.0002162,2]
[332597007,1721327446493,-3000.0,0.0002163,2]
[332597008,1721327446503,-1043.81229928,0.00021632,2]
[332597009,1721327446513,-500.0,0.00021632,2]
[332597010,1721327446523,-220.25256701,0.00021632,2]
[332597011,1721327446533,-500.0,0.00021632,2]
[332597012,1721327446543,-500.0,0.00021632,2]
[332597013,1721327446557,-500.0,0.00021632,2]
[332597014,1721327446567,-500.0,0.00021632,2]
[332597015,1721327446578,-500.0,0.00021632,2]
[332597016,1721327446588,-478.32064769,0.00021632,2]
[332597017,1721327446599,-453.13591711,0.00021632,2]
[332597018,1721327446610,-151.0,0.00021633,2]
[332597019,1721327446620,-151.0,0.00021633,2]
[332597020,1721327446633,-16296.25599122,0.00021633,3]
[332597211,1721328638348,-5511.47943235,0.00017882,2]
[332597212,1721328638358,-167.22373,0.00019268,2]
[332597213,1721328638369,-300.0,0.00019476,2]
[332597214,1721328638379,-179.81048147,0.0001952,2]
[332597215,1721328638388,-187.5,0.00020072,2]
[332597216,1721328638398,-167.22373,0.00020143,2]
[332597217,1721328638410,-187.5,0.00020421,2]
[332597218,1721328638420,-187.5,0.00020769,2]
[332597219,1721328638429,-1612.89068425,0.00020919,2]
[332597220,1721328638439,-156.35946513,0.00020928,2]
[332597221,1721328638448,-248.15366783,0.00021,2]
[332597222,1721328638457,-542.19950564,0.00021011,2]
[332597223,1721328638466,-435.4717111,0.00021011,2]
[332597224,1721328638477,-30000.0,0.00021012,2]
[332597225,1721328638488,-167.22373,0.00021019,2]
[332597226,1721328638499,-332.21947908,0.00021048,2]
[332597227,1721328638510,-597.621065,0.00021096,2]
[332597228,1721328638522,-187.5,0.00021118,2]
[332597229,1721328638533,-287.30766407,0.00021131,2]
[332597230,1721328638546,-284.88722453,0.00021131,2]
[332597231,1721328638556,-329.32533794,0.00021132,2]
[332597232,1721328638566,-248.68489287,0.00021146,2]
[332597233,1721328638576,-4156.669346,0.00021147,2]
[332597234,1721328638585,-341.48992898,0.000213,2]
[332597235,1721328638594,-341.48992898,0.000213,2]
[332597236,1721328638603,-538.7,0.00021301,2]
[332597237,1721328638614,-2842.54359995,0.00021354,2]
[332597238,1721328638625,-150.0,0.00021355,2]
[332597239,1721328638636,-1408.0,0.00021355,2]
[332597240,1721328638646,-150.391,0.00021355,2]
[332597241,1721328638657,-235.928,0.00021355,2]
[332597242,1721328638667,-166.666666,0.0002137,2]
[332597243,1721328638676,-2842.54359995,0.00021423,2]
[332597244,1721328638687,-420.0,0.00021424,2]
[332597245,1721328638698,-1612.89068422,0.00021461,2]
[332597246,1721328638707,-633.76168226,0.00021462,2]
[332597247,1721328638717,-501.4,0.00021465,2]
[332597248,1721328638728,-300.0,0.00021475,2]
[332597249,1721328638738,-500.0,0.000215,7]
[332597250,1721328638748,-528.51,0.000215,7]
[332597251,1721328638758,-500.0,0.000215,7]
[332597252,1721328638771,-500.0,0.000215,7]
[332597253,1721328638781,-500.0,0.000215,7]
[332597254,1721328638793,-602.61566984,0.0002152,2]
[332597255,1721328638804,-602.6156698,0.00021525,2]
[332597256,1721328638815,-602.6156698,0.0002153,2]
[332597257,1721328638826,-2000.0,0.00021533,2]
[332597258,1721328638836,-602.6156698,0.00021535,2]
[332597259,1721328638845,-602.6156698,0.0002154,2]
[332597260,1721328638855,-374.0,0.000216,2]
[332597261,1721328638865,-3000.0,0.000216,2]
[332597262,1721328638876,-500.0,0.0002161,2]
[332597263,1721328638886,-3000.0,0.0002161,2]
[332597264,1721328638896,-3000.0,0.0002162,2]
[332597265,1721328638907,-293.94282819,0.00021622,2]
[332597266,1721328638918,-39271.9482255,0.00021623,3]
[332597267,1721328638932,-3000.0,0.0002163,2]
[332597268,1721328638941,-375.39217735,0.00021632,2]
[332597269,1721328638952,-166.85527227,0.00021632,2]
[332597270,1721328638963,-500.0,0.00021632,2]
[332597271,1721328638975,-313.75354183,0.00021632,2]
[332597272,1721328638987,-500.0,0.00021632,2]
[332597273,1721328638999,-210.0,0.00021632,2]
[332597274,1721328639010,-202.20035161,0.00021632,2]
[332597275,1721328639020,-236.9494121,0.00021632,2]
[332597276,1721328639032,-479.03352283,0.00021632,2]
[332597277,1721328639042,-543.41562206,0.00021632,2]
[332597278,1721328639054,-500.0,0.00021632,2]
[332597279,1721328639067,-500.0,0.00021632,2]
[332597280,1721328639078,-500.0,0.00021632,2]
[332597281,1721328639088,-817.85691756,0.00021633,5]
[332597282,1721328639098,-8023.19074122,0.00021633,2]
[332597283,1721328639108,-27159.39290318,0.00021633,2]
[332597284,1721328639118,-6879.79283946,0.00021633,2]
[332597285,1721328639128,-7515.4872723,0.00021633,2]
[332597286,1721328639138,-58800.14737978,0.00021633,3]
[332597287,1721328639176,-176831.54197322,0.00021633,3]
[332597288,1721328639186,-597.71400819,0.00021637,3]
[332597289,1721328639198,-1638.1526514,0.00021637,2]
[332597290,1721328639209,-567.65464644,0.00021637,2]
[332597291,1721328639218,-4470.28382278,0.00021638,2]
[332597292,1721328639228,-3000.0,0.0002164,2]
[332597293,1721328639238,-14538.83889998,0.00021643,5]
[332597294,1721328639249,-26213.62257527,0.00021643,2]
[332597295,1721328639260,-1885.22996025,0.00021643,2]
[332597642,1721328643486,-341.48992898,0.00021146,2]
[332597645,1721328643495,-658.51007102,0.00021643,2]
[332597931,1721328646444,-156.35946513,0.00020918,2]
[332597933,1721328646456,-542.19950564,0.00020999,2]
[332597935,1721328646466,-33225.39996873,0.00021643,2]
[332597937,1721328646478,-35769.14,0.00021643,2]
[332597939,1721328646488,-35769.14,0.00021643,2]
[332597941,1721328646498,-35769.14,0.00021643,2]
[332597943,1721328646507,-35769.14,0.00021643,2]
[332597945,1721328646516,-35769.14,0.00021643,2]
[332597947,1721328646526,-35769.14,0.00021643,2]
[332597949,1721328646536,-35769.14,0.00021643,2]
[332597952,1721328646547,-35769.14,0.00021643,2]
[332597954,1721328646558,-35769.14,0.00021643,2]
[332597956,1721328646568,-35769.14,0.00021643,2]
[332597958,1721328646578,-35769.14,0.00021643,2]
[332597960,1721328646590,-35769.14,0.00021643,2]
[332597962,1721328646602,-35769.14,0.00021643,2]
[332597965,1721328646612,-35769.14,0.00021643,2]
[332597967,1721328646623,-35769.20395197,0.00021643,2]
[332597969,1721328646634,-500.0,0.00021643,2]
[332597971,1721328646645,-500.0,0.00021643,2]
[332597973,1721328646656,-368.14557315,0.00021643,2]
[332597975,1721328646669,-500.0,0.00021643,2]
[332597977,1721328646679,-500.0,0.00021643,2]
[332597979,1721328646690,-500.0,0.00021643,2]
[332597981,1721328646699,-500.0,0.00021643,2]
[332597983,1721328646710,-500.0,0.00021643,2]
[332597986,1721328646723,-500.0,0.00021643,2]
[332597987,1721328646732,-500.0,0.00021643,2]
[332597988,1721328646742,-500.0,0.00021643,2]
[332597989,1721328646752,-500.0,0.00021643,2]
[332597990,1721328646761,-500.0,0.00021643,2]
[332597991,1721328646770,-500.0,0.00021643,2]
[332597992,1721328646780,-500.0,0.00021643,2]
[332597993,1721328646790,-500.0,0.00021643,2]
[332597994,1721328646799,-500.0,0.00021643,2]
[332597996,1721328646809,-500.0,0.00021643,2]
[332597998,1721328646819,-500.0,0.00021643,2]
[332598000,1721328646830,-500.0,0.00021643,2]
[332598002,1721328646841,-500.0,0.00021643,2]
[332598004,1721328646853,-500.0,0.00021643,2]
[332598006,1721328646864,-500.0,0.00021643,2]
[332598008,1721328646875,-448.09656967,0.00021643,2]
[332598011,1721328646886,-151.0,0.00021643,2]
[332598013,1721328646896,-151.0,0.00021643,2]
[332598015,1721328646906,-151.0,0.00021643,2]
[332598017,1721328646919,-151.0,0.00021643,2]
[332598019,1721328646929,-287.134022,0.00021643,2]
[332598021,1721328646938,-151.0,0.00021643,2]
[332598023,1721328646948,-151.0,0.00021643,2]
[332598025,1721328646959,-151.0,0.00021643,2]
[332598027,1721328646968,-151.0,0.00021643,2]
[332598029,1721328646977,-151.0,0.00021643,2]
[332598030,1721328646987,-151.0,0.00021643,2]
[332598033,1721328646998,-151.0,0.00021643,2]
[332598035,1721328647010,-151.0,0.00021643,2]
[332598036,1721328647019,-151.0,0.00021643,2]
[332598038,1721328647028,-235.854336,0.00021643,2]
[332598041,1721328647040,-151.0,0.00021643,2]
[332598043,1721328647051,-151.0,0.00021643,2]
[332598045,1721328647060,-151.0,0.00021643,2]
[332598047,1721328647070,-154.204822,0.00021643,2]
[332598049,1721328647080,-151.0,0.00021643,2]
[332598051,1721328647089,-151.0,0.00021643,2]
[332598053,1721328647098,-151.0,0.00021643,2]
[332598055,1721328647107,-151.0,0.00021643,2]
[332598057,1721328647117,-151.0,0.00021643,2]
[332598059,1721328647126,-240.102346,0.00021643,2]
[332598061,1721328647135,-154.411635,0.00021643,2]
[332598063,1721328647146,-151.0,0.00021643,2]
[332598065,1721328647155,-151.0,0.00021643,2]
[332598067,1721328647167,-399.175102,0.00021643,2]
[332598069,1721328647176,-399.175102,0.00021643,2]
[332598071,1721328647185,-399.175102,0.00021643,2]
[332598073,1721328647194,-399.175102,0.00021643,2]
[332598075,1721328647203,-399.175102,0.00021643,2]
[332598077,1721328647213,-399.175102,0.00021643,2]
[332598079,1721328647222,-399.175102,0.00021643,2]
[332598081,1721328647232,-399.175102,0.00021643,2]
[332598083,1721328647241,-399.175102,0.00021643,2]
[332598085,1721328647251,-399.175102,0.00021643,2]
[332598087,1721328647260,-399.175102,0.00021643,2]
[332598089,1721328647270,-399.175102,0.00021643,2]
[332598091,1721328647279,-151.0,0.00021643,2]
[332598093,1721328647289,-797.230395,0.00021643,2]
[332598095,1721328647299,-797.230395,0.00021643,2]
[332598097,1721328647308,-797.230395,0.00021643,2]
[332598099,1721328647318,-797.230395,0.00021643,2]
[332598101,1721328647327,-797.230395,0.00021643,2]
[332598103,1721328647338,-797.230395,0.00021643,2]
[332598105,1721328647347,-797.230395,0.00021643,2]
[332598107,1721328647357,-797.230395,0.00021643,2]
[332598109,1721328647366,-797.230395,0.00021643,2]
[332598111,1721328647376,-797.230395,0.00021643,2]
[332598113,1721328647386,-797.230395,0.00021643,2]
[332598115,1721328647396,-797.230395,0.00021643,2]
[332598117,1721328647405,-151.0,0.00021643,2]
[332598119,1721328647417,-151.0,0.00021643,2]
[332598121,1721328647427,-151.0,0.00021643,2]
[332598123,1721328647436,-151.0,0.00021643,2]
[332598125,1721328647446,-174.470289,0.00021643,2]
[332598127,1721328647455,-151.0,0.00021643,2]
[332598129,1721328647464,-174.470289,0.00021643,2]
[332598131,1721328647474,-151.0,0.00021643,2]
[332598133,1721328647485,-174.470289,0.00021643,2]
[332598135,1721328647494,-174.470289,0.00021643,2]
[332598137,1721328647503,-174.470289,0.00021643,2]
[332598139,1721328647513,-151.0,0.00021643,2]
[332598141,1721328647523,-174.470289,0.00021643,2]
[332598143,1721328647532,-151.0,0.00021643,2]
[332598145,1721328647542,-151.0,0.00021643,2]
[332598147,1721328647551,-260.240344,0.00021643,2]
[332598149,1721328647561,-174.470289,0.00021643,2]
[332598151,1721328647570,-174.470289,0.00021643,2]
[332598153,1721328647580,-174.470289,0.00021643,2]
[332598155,1721328647589,-174.470289,0.00021643,2]
[332598157,1721328647598,-174.470289,0.00021643,2]
[332598159,1721328647607,-174.470289,0.00021643,2]
[332598162,1721328647619,-151.0,0.00021643,2]
[332598164,1721328647630,-151.0,0.00021643,2]
[332598166,1721328647640,-151.0,0.00021643,2]
[332598168,1721328647650,-151.0,0.00021643,2]
[332598170,1721328647662,-151.0,0.00021643,2]
[332598172,1721328647671,-151.0,0.00021643,2]
[332598174,1721328647681,-151.0,0.00021643,2]
[332598176,1721328647690,-236.259915,0.00021643,2]
[332598178,1721328647699,-151.0,0.00021643,2]
[332598181,1721328647711,-151.0,0.00021643,2]
[332598183,1721328647721,-389.559794,0.00021643,2]
[332598185,1721328647733,-389.559794,0.00021643,2]
[332598187,1721328647743,-389.559794,0.00021643,2]
[332598189,1721328647753,-389.559794,0.00021643,2]
[332598191,1721328647764,-389.559794,0.00021643,2]
[332598193,1721328647774,-389.559794,0.00021643,2]
[332598196,1721328647786,-389.559794,0.00021643,2]
[332598198,1721328647796,-389.559794,0.00021643,2]
[332598200,1721328647808,-389.559794,0.00021643,2]
[332598202,1721328647817,-389.559794,0.00021643,2]
[332598204,1721328647827,-389.559794,0.00021643,2]
[332598206,1721328647837,-389.559794,0.00021643,2]
[332598208,1721328647847,-710.003708,0.00021643,2]
[332598210,1721328647858,-710.003708,0.00021643,2]
[332598213,1721328647868,-710.003708,0.00021643,2]
[332598215,1721328647881,-710.003708,0.00021643,2]
[332598217,1721328647891,-710.003708,0.00021643,2]
[332598219,1721328647900,-710.003708,0.00021643,2]
[332598221,1721328647912,-156.527676,0.00021643,2]
[332598223,1721328647925,-710.003708,0.00021643,2]
[332598225,1721328647936,-710.003708,0.00021643,2]
[332598227,1721328647948,-710.003708,0.00021643,2]
[332598229,1721328647958,-710.003708,0.00021643,2]
[332598231,1721328647971,-710.003708,0.00021643,2]
[332598233,1721328647982,-710.003708,0.00021643,2]
[332598235,1721328647995,-151.0,0.00021643,2]
[332598237,1721328648009,-151.0,0.00021643,2]
[332598239,1721328648020,-151.0,0.00021643,2]
[332598241,1721328648030,-151.0,0.00021643,2]
[332598243,1721328648041,-151.0,0.00021643,2]
[332598246,1721328648051,-151.0,0.00021643,2]
[332598248,1721328648061,-366.562735,0.00021643,2]
[332598250,1721328648071,-366.562735,0.00021643,2]
[332598252,1721328648081,-366.562735,0.00021643,2]
[332598254,1721328648091,-366.562735,0.00021643,2]
[332598256,1721328648101,-366.562735,0.00021643,2]
[332598258,1721328648111,-366.562735,0.00021643,2]
[332598260,1721328648122,-366.562735,0.00021643,2]